[Event "36th Belgrade Trophy 2023"]
[Site "Belgrade"]
[Date "2023.11.28"]
[Round "4.6"]
[White "Atalik, Suat"]
[Black "Djokic, Nenad"]
[Result "1/2-1/2"]
[ECO "E42"]
[WhiteElo "2427"]
[BlackElo "2223"]
[Annotator "TA"]
[PlyCount "91"]
[EventDate "2023.10.23"]
[EventType "swiss"]
[EventCountry "SRB"]
[SourceTitle "playchess.com"]
[Source "ChessBase"]
[SourceQuality "1"]
[TimeControl "40/5400+30:900+30"]

{[%evp 14,91,24,11,21,40,32,20,0,23,0,0,45,19,65,12,9,0,0,0,0,0,0,0,0,0,2,0,6,0,58,13,25,18,33,18,36,27,25,13,51,49,93,110,102,88,62,52,68,45,75,70,83,18,16,3,20,25,31,9,31,0,31,32,49,27,38,33,43,42,20,27,48,0,0,0,0,0,0,0]} 1. d4 {[%emt 0:00:05]} Nf6 {[%emt 0:00:07]} 2. c4 {[%emt 0:00:20]} e6 {[%emt 0:00:10]} 3. Nc3 {[%emt 0:00:27]} Bb4 {[%emt 0:00:12]} 4. e3 {[%emt 0:00:17]} b6 {[%emt 0:00:24]} 5. Nge2 {[%emt 0:01:46]} c5 {[%emt 0:00:26]} 6. a3 {[%emt 0:01:18]} Ba5 {[%emt 0:00:10]} 7. Rb1 {[%emt 0:00:45]} Na6 {[%emt 0:00:10]} 8. Ng3 {[%emt 0:01:18]} Bb7 {[%emt 0:04:14] E42: Nimzo-Indian: Rubinstein: 4...c5 5 Ne2.} 9. f3 {[%emt 0:01:02] 9.Bd3 is not played anymore.} O-O {[%emt 0:02:30]} 10. Bd3 {[%emt 0:01:02]} cxd4 {[%emt 0:01:17]} 11. exd4 {[%emt 0:00:49] Threatens to win with b4.} Bxc3+ {[%emt 0:00:09]} 12. bxc3 {[%emt 0:00:05][%cal Oc4c5]} Nc7 {[%emt 0:06:48] [#]} 13. O-O $146 {[%emt 1:27:46]} ({Predecessor:} 13. c5 Qc8 14. Bg5 Nfd5 15. Ne4 Ne8 16. c4 h6 17. Bd2 f5 18. Ng3 Ndf6 19. cxb6 axb6 20. Rxb6 {1-0 Mitev,V (2255)-Zelcic,R (2513) EU-ch 22nd Terme Catez 2022 (2)}) 13... d5 {[%emt 0:04:09]} (13... Ba6 $11) 14. c5 {[%emt 0:00:30]} ({White should try} 14. cxd5 $1 $14 Ncxd5 15. Bd2) 14... Ba6 $11 {[%emt 0:04:21]} 15. Bxa6 {[%emt 0:00:00]} Nxa6 {[%emt 0:00:03]} 16. Qa4 {[%emt 0:00:00]} Nc7 {[%emt 0:00:43]} 17. Bf4 {[%emt 0:00:00]} Nce8 {[%emt 1:13:07]} 18. Rfd1 {[%emt 0:00:00]} Qc8 {[%emt 0:00:30]} 19. Qb5 {[%emt 0:02:30]} Nd7 {[%emt 0:00:00][%cal Rb6c5] Black is weak on the dark squares} 20. c4 {[%emt 0:00:00]} dxc4 {[%emt 0:00:00]} 21. Ne4 {[%emt 0:01:00]} Ndf6 {[%emt 0:00:00]} ({Black should play} 21... Nc7 $11 22. Bxc7 (22. Qxc4 Nd5 $14) 22... Qxc7) 22. Qxc4 {[%emt 0:00:30]} (22. Rdc1 {is interesting.} Nd5 23. Be5 f6 24. Bd6) 22... Nd5 {[%emt 0:00:00]} 23. Bd2 {[%emt 0:00:00]} Qc6 {[%emt 0:02:30]} 24. Rdc1 {[%emt 0:00:00]} Nef6 {[%emt 0:00:00]} 25. Bg5 {[%emt 0:00:00]} Nd7 {[%emt 0:00:00]} 26. Qa6 {[%emt 0:00:00]} Nc7 {[%emt 0:00:00] Excellent horsemanship.} 27. Qd3 {[%emt 0:00:00] And now cxb6 would win.} b5 {[%emt 0:00:00]} 28. Be7 {[%emt 0:00:00]} Rfe8 {[%emt 0:00:00]} 29. Bd6 {[%emt 0:00:00] Bxc7 would be deadly.} a6 {[%emt 0:03:00]} 30. Bxc7 {[%emt 0:00:00]} Qxc7 {[%emt 0:00:00]} 31. Nd6 {[%emt 0:00:00]} Reb8 {[%emt 0:00:00] [#]} 32. f4 $1 {[%emt 0:00:00] f5 is the strong threat.} g6 {[%emt 0:00:00]} 33. Qf3 {[%emt 0:00:00] White has more active pieces. The black rooks are badly placed.} (33. Ne4 $16) 33... Nf6 {[%emt 0:00:00]} 34. g4 {[%emt 0:00:00]} Ne8 {[%emt 0:00:00]} ({Don't do} 34... Nd5 35. f5 $16) 35. Ne4 {[%emt 0:00:00]} Rd8 {[%emt 0:00:00]} 36. Rd1 {[%emt 0:00:00]} Qd7 {[%emt 0:00:00]} 37. Kg2 {[%emt 0:00:00]} Qd5 {[%emt 0:00:00]} 38. Nc3 {[%emt 0:01:00]} Qxf3+ {[%emt 0:00:00]} 39. Kxf3 {[%emt 0:00:06]} Nc7 {[%emt 0:00:00]} 40. a4 {[%emt 0:00:00][%cal Ra4b5]} Rab8 {[%emt 0:00:00]} 41. axb5 {[%emt 0:02:24]} axb5 {[%emt 0:21:00]} 42. Rb4 {[%emt 0:21:30]} Na6 {[%emt 0:00:00]} 43. Rxb5 {[%emt 0:00:00]} (43. Rb3 $1 $14) 43... Rxb5 {[%emt 0:00:00][%mdl 64] [#] Remove Defender. The position is equal.} 44. Nxb5 {[%emt 0:00:00] Strongly threatening Ra1.} Nxc5 {[%emt 0:00:00]} 45. Nc3 {[%emt 0:00:00]} Na6 {[%emt 0:00:00]} 46. d5 {[%emt 0:00:00] Weighted Error Value: White=0.12 (very precise) /Black=0.12 (very precise)} 1/2-1/2

[Event "36th Belgrade Trophy 2023"]
[Site "Belgrade"]
[Date "2023.11.28"]
[Round "4.7"]
[White "Popchev, Milko"]
[Black "Bjelanovic, Mile"]
[Result "1-0"]
[ECO "B50"]
[WhiteElo "2244"]
[BlackElo "2033"]
[Annotator "NA RC"]
[PlyCount "87"]
[EventDate "2023.10.23"]
[EventType "swiss"]
[EventCountry "SRB"]
[SourceTitle "playchess.com"]
[Source "ChessBase"]
[SourceQuality "1"]
[TimeControl "40/5400+30:900+30"]

1. e4 {[%emt 0:13:39]} c5 {[%emt 0:00:12]} 2. Nf3 {[%emt 0:00:11]} d6 {[%emt 0:00:07]} 3. Be2 {[%emt 0:00:16]} Nf6 {[%emt 0:00:35]} 4. d3 {[%emt 0:00:11]} Nc6 {[%emt 0:00:42]} 5. O-O {[%emt 0:00:15]} e5 {[%emt 0:04:12]} 6. c3 {[%emt 0:00:37]} Be7 {[%emt 0:00:34]} 7. a3 {[%emt 0:00:19]} a5 {[%emt 0:01:50]} 8. a4 {[%emt 0:00:13]} O-O {[%emt 0:00:29]} 9. Na3 {[%emt 0:00:09]} h6 {[%emt 0:05:40]} 10. Re1 {[%emt 0:01:51]} Nh7 {[%emt 0:01:49]} 11. Nd2 {[%emt 0:00:37]} Ng5 {[%emt 0:02:24]} 12. Ndc4 {[%emt 0:01:08]} Ne6 {[%emt 0:03:53]} 13. Bg4 {[%emt 0:03:27]} Bg5 {[%emt 0:12:48]} 14. Nb5 {[%emt 0:01:29]} Be7 {[%emt 0:02:39]} 15. Ne3 {[%emt 0:01:42]} Nc7 {[%emt 0:06:02]} 16. Na3 {[%emt 0:01:14]} Bg5 {[%emt 0:08:01]} 17. Nac4 {[%emt 0:01:38]} Be6 {[%emt 0:08:42]} 18. Qf3 {[%emt 0:02:51]} Ra6 {[%emt 0:06:03]} 19. g3 {[%emt 0:00:37]} d5 {[%emt 0:10:11]} 20. exd5 {[%emt 0:01:06]} Nxd5 {[%emt 0:00:51]} 21. Bxe6 {[%emt 0:01:48]} fxe6 {[%emt 0:04:51]} 22. Qe2 {[%emt 0:00:14]} Bxe3 {[%emt 0:02:27]} 23. Bxe3 {[%emt 0:00:22]} Qe7 {[%emt 0:01:14]} 24. Qg4 {[%emt 0:03:38]} Nxe3 {[%emt 0:05:48]} 25. Rxe3 {[%emt 0:00:23]} Qf6 {[%emt 0:00:22]} 26. Qe2 {[%emt 0:01:16]} Rd8 {[%emt 0:02:20]} 27. Re1 {[%emt 0:01:00]} Qg6 {[%emt 0:01:23]} 28. Re4 {[%emt 0:00:40]} Rd5 {[%emt 0:01:18]} 29. Qe3 {[%emt 0:01:34]} Rd8 {[%emt 0:03:14]} 30. Re2 {[%emt 0:01:00]} Raa8 {[%emt 0:00:28]} 31. Rd2 {[%emt 0:00:50]} Rd5 {[%emt 0:02:35]} 32. Nxe5 {[%emt 0:00:53]} Nxe5 {[%emt 0:00:18]} 33. Rxe5 {[%emt 0:00:08]} Rad8 {[%emt 0:01:39]} 34. Rxe6 {[%emt 0:00:30]} Qf5 {[%emt 0:00:50]} 35. Re8+ {[%emt 0:02:36]} Rxe8 {[%emt 0:00:28]} 36. Qxe8+ {[%emt 0:00:10]} Kh7 {[%emt 0:00:03]} 37. d4 {[%emt 0:00:25]} cxd4 {[%emt 0:00:40]} 38. cxd4 {[%emt 0:00:16]} b5 {[%emt 0:00:39]} 39. axb5 {[%emt 0:00:42]} Rxb5 {[%emt 0:00:04]} 40. Qe2 {[%emt 0:00:00]} a4 {[%emt 0:00:00]} 41. Kg2 {[%emt 0:00:41]} Qd5+ {[%emt 0:02:41]} 42. Qf3 {[%emt 0:00:12]} Qd7 {[%emt 0:01:16]} 43. Qe4+ {[%emt 0:00:20]} Kg8 {[%emt 0:00:11]} 44. d5 {[%emt 0:00:07]} 1-0

[Event "36th Belgrade Trophy 2023"]
[Site "Belgrade"]
[Date "2023.11.28"]
[Round "4.8"]
[White "Smolovic, Mile"]
[Black "Pap, Misa"]
[Result "0-1"]
[ECO "B34"]
[WhiteElo "2082"]
[BlackElo "2426"]
[Annotator "TA"]
[PlyCount "86"]
[EventDate "2023.10.23"]
[EventType "swiss"]
[EventCountry "SRB"]
[SourceTitle "playchess.com"]
[Source "ChessBase"]
[SourceQuality "1"]
[TimeControl "40/5400+30:900+30"]

{[%evp 13,86,6,7,2,18,0,0,-32,-4,-18,-25,-62,-44,-51,-21,-49,-46,-49,-40,-49,-45,-70,-68,-69,-57,-172,-166,-168,-164,-171,-160,-168,-137,-164,-155,-198,-191,-197,-202,-247,-212,-240,-195,-226,-230,-269,-242,-307,-292,-309,-309,-299,-292,-297,-256,-502,-519,-681,-679,-745,-715,-706,-645,-1094,-1018,-1437,-1442,-1387,-1326,-1277,-1160,-1237,-1043,-1453,-1287]} 1. e4 {[%emt 0:00:01]} c5 {[%emt 0:00:16]} 2. Nc3 {[%emt 0:00:10]} Nc6 {[%emt 0:00:09]} 3. Nge2 {[%emt 0:00:11]} g6 {[%emt 0:00:14]} 4. d4 {[%emt 0:00:25]} cxd4 {[%emt 0:00:06]} 5. Nxd4 {[%emt 0:00:13]} Bg7 {[%emt 0:00:06]} 6. Nde2 {[%emt 0:00:12]} Nf6 {[%emt 0:01:37]} 7. g3 {[%emt 0:00:10]} b5 {[%emt 0:00:40]} 8. Bg2 {[%emt 0:00:23] B34: Sicilian: Accelerated Dragon with 5 Nc3: sidelines.} (8. Nxb5 Qa5+ 9. Nbc3 Nxe4 $17) 8... b4 $1 {[%emt 0:00:16][%mdl 4] is recently more successful than 8...Rb8.} 9. Nd5 {[%emt 0:00:43]} e6 {[%emt 0:06:33] [#]} 10. Ndf4 $146 {[%emt 0:11:42] The position is equal.} (10. Ne3 $5 {[%cal Re4e5]}) ({Predecessor:} 10. Ne3 Rb8 11. a3 O-O 12. O-O Re8 13. axb4 Rxb4 14. c4 Bb7 15. Nc3 Qb8 16. Nb5 {1-0 Fedorov,A (2569)-Kanovsky,D (2404) CZE-chT 1314 2013 (9.3)}) 10... Rb8 {[%emt 0:10:59]} 11. h3 {[%emt 0:03:27]} d6 {[%emt 0:07:05]} 12. Be3 {[%emt 0:03:46]} O-O {[%emt 0:02:00]} 13. O-O {[%emt 0:00:32]} Qc7 {[%emt 0:05:40]} 14. g4 {[%emt 0:06:51]} a5 {[%emt 0:12:37]} 15. Rc1 {[%emt 0:09:25]} Nd7 {[%emt 0:09:43]} 16. b3 {[%emt 0:01:54]} Ba6 {[%emt 0:01:32]} 17. Re1 {[%emt 0:00:52]} Nc5 {[%emt 0:04:14]} 18. Nd3 {[%emt 0:04:19]} Ne5 {[%emt 0:11:54] Black is more active.} 19. f4 {[%emt 0:04:12] Black continues to play with concentration.} (19. Nxe5 $15 dxe5 20. Ng3 (20. c4 $2 Rbd8 $19)) 19... Nexd3 $19 {[%emt 0:04:03]} 20. cxd3 {[%emt 0:00:14] [#] Threatens to win with d4.} Qd7 {[%emt 0:05:24]} 21. Bxc5 {[%emt 0:02:47]} dxc5 {[%emt 0:00:11]} 22. e5 {[%emt 0:00:20]} Rfd8 {[%emt 0:03:19] Strongly threatening ...Qa7.} ({Worse is} 22... Bxd3 23. Qd2 $17) (22... Qxd3 23. Qxd3 Bxd3 24. Rxc5 $15) 23. Be4 {[%emt 0:08:55]} Rbc8 {[%emt 0:01:17]} ({Inferior is} 23... Bxd3 24. Bxd3 Qxd3 25. Qxd3 Rxd3 26. Rxc5 $17) 24. Rc2 {[%emt 0:04:41]} c4 {[%emt 0:04:22]} ({Weaker is} 24... Bxd3 25. Rd2 Bxe2 26. Rxd7 $17) 25. bxc4 {[%emt 0:02:23] [#]} Bxc4 $1 {[%emt 0:00:15][%mdl 512]} 26. Nc1 {[%emt 0:00:52]} (26. d4 b3) 26... Bb5 {[%emt 0:02:10][%cal Og6g5]} 27. Kg2 {[%emt 0:01:23]} Bf8 {[%emt 0:01:02][%cal Bg7f8,Bf8c5,Bc5d4][%mdl 32]} 28. Rf2 {[%emt 0:06:48]} Bc5 {[%emt 0:00:29]} 29. Rf3 {[%emt 0:00:16]} Bd4 {[%emt 0:01:04]} 30. Rh1 {[%emt 0:01:38]} Qc7 {[%emt 0:00:28]} 31. h4 {[%emt 0:08:48]} Qc2+ {[%emt 0:00:17]} 32. Kg3 {[%emt 0:01:13]} Qxd1 {[%emt 0:00:26]} 33. Rxd1 {[%emt 0:00:01]} Rc2 {[%emt 0:00:10] Against Ne2} 34. g5 $2 {[%emt 0:00:59] White is weak on the dark squares} (34. Rff1 {is a better defense.}) 34... a4 {[%emt 0:00:17] Black is clearly winning.} 35. h5 {[%emt 0:05:11]} Rdc8 {[%emt 0:00:15]} 36. hxg6 {[%emt 0:01:10]} hxg6 {[%emt 0:00:10]} 37. Rff1 {[%emt 0:00:47]} Bb2 {[%emt 0:00:12] This pair of bishops is nice.} 38. d4 {[%emt 0:00:22]} Rxc1 {[%emt 0:00:34]} 39. Rh1 {[%emt 0:01:22]} Rxd1 {[%emt 0:00:35]} 40. Rxd1 {[%emt 0:00:00]} Bc4 {[%emt 0:00:00]} 41. d5 {[%emt 0:00:54]} exd5 {[%emt 0:02:38]} 42. Bxd5 {[%emt 0:00:11]} b3 {[%emt 0:01:38]} 43. axb3 {[%emt 0:00:30]} Bxb3 {[%emt 0:00:55] Weighted Error Value: White=0.76/Black=0.13 (very precise)} 0-1

[Event "36th Belgrade Trophy 2023"]
[Site "Belgrade"]
[Date "2023.11.28"]
[Round "4.9"]
[White "Chubakov, Sultan"]
[Black "Martic, Ivan"]
[Result "0-1"]
[ECO "A88"]
[WhiteElo "2079"]
[BlackElo "2292"]
[Annotator "RC"]
[PlyCount "86"]
[EventDate "2023.10.23"]
[EventType "swiss"]
[EventCountry "SRB"]
[SourceTitle "playchess.com"]
[Source "ChessBase"]
[SourceQuality "1"]
[TimeControl "40/5400+30:900+30"]

1. c4 {[%emt 0:00:09]} f5 {[%emt 0:00:21]} 2. d4 {[%emt 1:31:21]} d6 {[%emt 0:02:29]} 3. Nf3 {[%emt 0:00:00]} Nf6 {[%emt 0:00:18]} 4. g3 {[%emt 0:00:00]} g6 {[%emt 0:00:18]} 5. Bg2 {[%emt 0:00:00]} Bg7 {[%emt 0:00:02]} 6. O-O {[%emt 0:00:00]} O-O {[%emt 1:30:02]} 7. Nc3 {[%emt 0:02:30]} c6 {[%emt 0:00:30]} 8. Re1 {[%emt 0:00:30]} Qc7 {[%emt 0:00:30]} 9. Qb3 {[%emt 0:00:30]} Kh8 {[%emt 0:00:30]} 10. Bf4 {[%emt 0:00:00]} Nh5 {[%emt 0:00:00]} 11. Qa3 {[%emt 0:01:00]} Nxf4 {[%emt 0:00:00]} 12. gxf4 {[%emt 0:00:30]} Nd7 {[%emt 0:00:00]} 13. Rad1 {[%emt 0:00:30]} Nf6 {[%emt 0:02:00]} 14. e3 {[%emt 0:00:30]} Bd7 {[%emt 0:00:00]} 15. c5 {[%emt 0:00:00]} b5 {[%emt 0:01:00]} 16. cxd6 {[%emt 0:00:00]} exd6 {[%emt 0:00:30]} 17. Qb3 {[%emt 0:01:30]} a5 {[%emt 0:00:30]} 18. a4 {[%emt 0:00:30]} b4 {[%emt 0:00:30]} 19. Ne2 {[%emt 0:00:30]} Nd5 {[%emt 0:00:00]} 20. Qc2 {[%emt 0:00:00]} Qd8 {[%emt 0:01:00]} 21. b3 {[%emt 0:01:00]} h6 {[%emt 0:00:30]} 22. Nd2 {[%emt 0:00:00]} g5 {[%emt 0:00:00]} 23. Nc4 {[%emt 0:01:00]} Be8 {[%emt 0:00:00]} 24. h3 {[%emt 0:00:00]} Bh5 {[%emt 0:00:00]} 25. f3 {[%emt 0:00:00]} Ra7 {[%emt 0:02:00]} 26. Kh2 {[%emt 0:00:00]} Re7 {[%emt 0:00:00]} 27. Qd2 {[%emt 0:02:00]} Ree8 {[%emt 0:00:00]} 28. Ng3 {[%emt 0:00:00]} Bg6 {[%emt 0:01:30]} 29. fxg5 {[%emt 0:00:00]} hxg5 {[%emt 0:00:00]} 30. f4 {[%emt 0:00:00]} Bh6 {[%emt 0:00:00]} 31. Bxd5 {[%emt 0:00:00]} cxd5 {[%emt 0:00:00]} 32. Nb2 {[%emt 0:00:00]} gxf4 {[%emt 0:00:00]} 33. exf4 {[%emt 0:00:00]} Qh4 {[%emt 0:00:00]} 34. Rxe8 {[%emt 0:00:00]} Rxe8 {[%emt 0:00:00]} 35. Nd3 {[%emt 0:00:00]} Re4 {[%emt 0:00:00]} 36. Rg1 {[%emt 0:04:30]} Bxf4 {[%emt 0:00:00]} 37. Qc2 {[%emt 0:00:00]} Be3 {[%emt 0:04:30]} 38. Rg2 {[%emt 0:00:00]} Re8 {[%emt 0:00:00]} 39. Qc7 {[%emt 0:00:00]} Qf6 {[%emt 0:00:00]} 40. Qd7 {[%emt 0:00:00]} Rd8 {[%emt 0:00:00]} 41. Qc7 {[%emt 0:17:30]} f4 {[%emt 0:01:11]} 42. Nf5 {[%emt 0:00:00]} Bxf5 {[%emt 0:03:06]} 43. Ne5 {[%emt 0:00:00]} Rf8 {[%emt 0:01:01]} 0-1

[Event "36th Belgrade Trophy 2023"]
[Site "Belgrade"]
[Date "2023.11.28"]
[Round "4.10"]
[White "Besedes, Danilo"]
[Black "Petrusic, Velimir"]
[Result "1-0"]
[ECO "A90"]
[WhiteElo "2277"]
[BlackElo "2060"]
[Annotator "NA RC"]
[PlyCount "81"]
[EventDate "2023.10.23"]
[EventType "swiss"]
[EventCountry "SRB"]
[SourceTitle "playchess.com"]
[Source "ChessBase"]
[SourceQuality "1"]
[TimeControl "40/5400+30:900+30"]

1. d4 {[%emt 0:02:08]} e6 2. c4 {[%emt 1:29:22]} f5 {[%emt 1:31:30]} 3. g3 {[%emt 0:00:30]} Nf6 {[%emt 0:00:30]} 4. Bg2 {[%emt 0:00:30]} d5 {[%emt 0:00:30]} 5. Nf3 {[%emt 0:00:30]} c6 {[%emt 0:00:30]} 6. O-O {[%emt 0:00:00]} Bd6 {[%emt 0:00:30]} 7. Nbd2 {[%emt 0:01:00]} O-O {[%emt 0:00:30]} 8. Qc2 {[%emt 0:00:30]} Ne4 {[%emt 0:00:30]} 9. Ne5 {[%emt 0:00:30]} Nd7 {[%emt 0:00:30]} 10. Nd3 {[%emt 0:00:30]} Qe7 {[%emt 0:00:30]} 11. Rb1 {[%emt 0:00:30]} a5 {[%emt 0:00:00]} 12. Nf3 Kh8 {[%emt 0:01:00]} 13. Nfe5 {[%emt 0:01:00]} Nxe5 {[%emt 0:00:00]} 14. dxe5 Bb8 {[%emt 0:01:00]} 15. Be3 {[%emt 0:01:00]} Ba7 {[%emt 0:00:30]} 16. c5 {[%emt 0:00:30]} Bd7 {[%emt 0:00:00]} 17. f3 Ng5 {[%emt 0:01:00]} 18. Qd2 {[%emt 0:01:00]} Nf7 {[%emt 0:00:30]} 19. Qxa5 {[%emt 0:00:30]} g5 {[%emt 0:00:00]} 20. Bd4 Rg8 {[%emt 0:01:00]} 21. Qc7 {[%emt 0:01:00]} Bb8 {[%emt 0:00:30]} 22. Qxb7 {[%emt 0:00:00]} Ra4 {[%emt 0:00:00]} 23. e3 f4 {[%emt 0:01:00]} 24. Qb3 {[%emt 0:01:30]} Rc4 {[%emt 0:00:00]} 25. Rbc1 Rxc1 {[%emt 0:00:00]} 26. Rxc1 fxg3 {[%emt 0:01:30]} 27. hxg3 {[%emt 0:01:30]} h5 {[%emt 0:00:30]} 28. Kf2 {[%emt 0:00:30]} Kg7 {[%emt 0:00:30]} 29. Qb7 {[%emt 0:00:00]} h4 30. g4 {[%emt 0:01:00]} Rh8 {[%emt 0:00:00]} 31. b4 {[%emt 0:00:00]} h3 {[%emt 0:00:00]} 32. Bxh3 Rxh3 {[%emt 0:02:00]} 33. Qxb8 {[%emt 0:00:00]} Nh6 {[%emt 0:00:00]} 34. Kg2 Qf7 {[%emt 0:01:00]} 35. Rf1 {[%emt 0:02:30]} Nxg4 {[%emt 0:00:30]} 36. fxg4 {[%emt 0:00:30]} Rh2+ {[%emt 0:00:00]} 37. Kxh2 Qxf1 {[%emt 0:00:00]} 38. Qd8 Qxd3 {[%emt 0:00:00]} 39. Qxd7+ Kf8 {[%emt 0:02:00]} 40. Qd8+ {[%emt 0:02:00]} Kf7 {[%emt 0:00:00]} 41. Qf6+ {[%emt 0:15:30]} 1-0

[Event "36th Belgrade Trophy 2023"]
[Site "Belgrade"]
[Date "2023.11.28"]
[Round "4.11"]
[White "Scekic, Veljko"]
[Black "Milicevic, Aleksa"]
[Result "1/2-1/2"]
[ECO "E09"]
[WhiteElo "2211"]
[BlackElo "2029"]
[Annotator "RC"]
[PlyCount "51"]
[EventDate "2023.10.23"]
[EventType "swiss"]
[EventCountry "SRB"]
[SourceTitle "playchess.com"]
[Source "ChessBase"]
[SourceQuality "1"]
[TimeControl "40/5400+30:900+30"]

1. Nf3 {[%emt 1:31:00]} d5 {[%emt 1:31:00]} 2. c4 {[%emt 0:00:30]} e6 {[%emt 0:00:30]} 3. g3 {[%emt 0:00:30]} Nf6 {[%emt 0:00:30]} 4. Bg2 {[%emt 0:00:30]} Be7 {[%emt 0:00:30]} 5. O-O {[%emt 0:00:30]} O-O {[%emt 0:00:30]} 6. b3 {[%emt 0:00:30]} c6 {[%emt 0:00:30]} 7. Bb2 {[%emt 0:00:30]} Nbd7 {[%emt 0:00:00]} 8. Qc2 b6 {[%emt 0:01:00]} 9. d4 {[%emt 0:01:00]} Bb7 {[%emt 0:00:30]} 10. Nbd2 {[%emt 0:00:30]} Rc8 {[%emt 0:00:30]} 11. e4 {[%emt 0:00:30]} Rc7 {[%emt 0:00:00]} 12. Rac1 Ne8 {[%emt 0:01:00]} 13. Rfd1 {[%emt 0:01:00]} Qa8 {[%emt 0:00:30]} 14. Qd3 {[%emt 0:00:30]} c5 {[%emt 0:00:30]} 15. cxd5 {[%emt 0:00:30]} exd5 {[%emt 0:00:30]} 16. exd5 {[%emt 0:00:30]} Bxd5 {[%emt 0:00:30]} 17. Ne1 {[%emt 0:00:30]} Bxg2 {[%emt 0:00:30]} 18. Nxg2 {[%emt 0:00:30]} Bf6 {[%emt 0:00:30]} 19. Ne4 {[%emt 0:00:30]} Bxd4 {[%emt 0:00:30]} 20. Bxd4 {[%emt 0:00:30]} cxd4 {[%emt 0:00:30]} 21. Rxc7 {[%emt 0:00:30]} Nxc7 {[%emt 0:00:30]} 22. Qxd4 {[%emt 0:00:30]} Ne6 {[%emt 0:00:30]} 23. Qd5 {[%emt 0:00:30]} Qxd5 {[%emt 0:00:30]} 24. Rxd5 {[%emt 0:00:30]} Rd8 {[%emt 0:00:00]} 25. Ne3 Nb8 {[%emt 0:01:00]} 26. Rxd8+ {[%emt 0:01:00]} 1/2-1/2

[Event "36th Belgrade Trophy 2023"]
[Site "Belgrade"]
[Date "2023.11.28"]
[Round "4.12"]
[White "Kijanovic, Igor"]
[Black "Gusev, Mikhail"]
[Result "0-1"]
[ECO "D46"]
[WhiteElo "2163"]
[BlackElo "2055"]
[Annotator "RC"]
[PlyCount "130"]
[EventDate "2023.10.23"]
[EventType "swiss"]
[EventCountry "SRB"]
[SourceTitle "playchess.com"]
[Source "ChessBase"]
[SourceQuality "1"]
[TimeControl "40/5400+30:900+30"]

1. Nf3 {[%emt 0:00:28]} Nf6 {[%emt 0:00:05]} 2. c4 {[%emt 0:00:06]} e6 {[%emt 0:00:05]} 3. Nc3 {[%emt 0:00:19]} d5 {[%emt 1:31:50]} 4. d4 {[%emt 1:31:37]} c6 {[%emt 0:00:30]} 5. e3 {[%emt 0:00:30]} Nbd7 {[%emt 0:00:30]} 6. Qc2 {[%emt 0:00:30]} Bd6 {[%emt 0:00:00]} 7. Bd3 {[%emt 0:00:30]} O-O {[%emt 0:01:00]} 8. O-O {[%emt 0:00:30]} dxc4 {[%emt 0:00:00]} 9. Bxc4 {[%emt 0:00:00]} e5 {[%emt 0:01:00]} 10. Rd1 {[%emt 0:01:00]} Qc7 {[%emt 0:00:30]} 11. h3 {[%emt 0:00:00]} h6 {[%emt 0:00:30]} 12. e4 {[%emt 0:01:00]} b5 {[%emt 0:00:30]} 13. Be2 {[%emt 0:00:30]} exd4 {[%emt 0:00:00]} 14. Nxd4 {[%emt 0:00:30]} Re8 {[%emt 0:01:00]} 15. a3 {[%emt 0:00:30]} a6 {[%emt 0:00:30]} 16. Be3 {[%emt 0:00:30]} c5 {[%emt 0:00:00]} 17. Nf5 {[%emt 0:00:30]} Bh2+ {[%emt 0:00:00]} 18. Kh1 {[%emt 0:00:30]} Nb6 {[%emt 0:00:00]} 19. Nd5 {[%emt 0:00:30]} Nbxd5 {[%emt 0:00:00]} 20. exd5 {[%emt 0:00:30]} Ne4 {[%emt 0:02:30]} 21. d6 {[%emt 0:00:30]} Nxd6 {[%emt 0:00:00]} 22. Nxd6 {[%emt 0:00:30]} Bxd6 {[%emt 0:01:00]} 23. Bf3 {[%emt 0:00:00]} Rb8 {[%emt 0:00:30]} 24. b3 {[%emt 0:01:00]} Be6 {[%emt 0:00:00]} 25. Bd5 {[%emt 0:00:30]} c4 {[%emt 0:00:00]} 26. a4 {[%emt 0:00:30]} Be5 {[%emt 0:01:30]} 27. Rac1 {[%emt 0:00:30]} c3 {[%emt 0:00:30]} 28. axb5 {[%emt 0:00:30]} Bxd5 {[%emt 0:00:00]} 29. Rxd5 {[%emt 0:00:00]} Rxb5 {[%emt 0:01:00]} 30. Rcd1 {[%emt 0:01:00]} Rxd5 {[%emt 0:00:00]} 31. Rxd5 {[%emt 0:00:00]} Rd8 {[%emt 0:01:00]} 32. Rc5 {[%emt 0:00:00]} Qd6 {[%emt 0:00:00]} 33. g3 {[%emt 0:01:30]} Bf6 {[%emt 0:00:00]} 34. Kg2 {[%emt 0:00:00]} Qd1 {[%emt 0:00:00]} 35. Qxd1 {[%emt 0:00:00]} Rxd1 {[%emt 0:02:00]} 36. b4 {[%emt 0:01:30]} Rb1 {[%emt 0:00:30]} 37. Rc4 {[%emt 0:00:30]} Kf8 {[%emt 0:00:30]} 38. Kf3 {[%emt 0:00:30]} Ke7 {[%emt 0:00:00]} 39. Ke4 {[%emt 0:00:30]} Rd1 {[%emt 0:01:00]} 40. Rc7+ {[%emt 0:00:00]} Ke6 {[%emt 0:00:00]} 41. Rc6+ {[%emt 0:00:00]} Rd6 {[%emt 0:00:00]} 42. Rc4 {[%emt 0:00:00]} Be5 {[%emt 0:00:00]} 43. g4 {[%emt 0:17:00]} g5 {[%emt 0:00:00]} 44. Rc5 {[%emt 0:00:30]} f6 {[%emt 0:17:30]} 45. Rc4 {[%emt 0:00:30]} Rd1 {[%emt 0:00:30]} 46. Rc6+ {[%emt 0:00:00]} Kd7 {[%emt 0:00:30]} 47. Rc4 {[%emt 0:01:00]} Rh1 {[%emt 0:00:30]} 48. Bd4 {[%emt 0:00:30]} Bxd4 {[%emt 0:00:00]} 49. Rxd4+ {[%emt 0:00:00]} Ke7 {[%emt 0:00:00]} 50. Rc4 {[%emt 0:00:00]} Rxh3 {[%emt 0:00:00]} 51. f3 {[%emt 0:01:30]} f5+ {[%emt 0:02:00]} 52. Kxf5 {[%emt 0:00:30]} Rxf3+ {[%emt 0:00:30]} 53. Kg6 {[%emt 0:00:30]} Rh3 {[%emt 0:00:00]} 54. Rc6 {[%emt 0:00:00]} Kd7 {[%emt 0:00:00]} 55. Rxa6 {[%emt 0:00:00]} c2 {[%emt 0:01:30]} 56. Ra1 {[%emt 0:00:00]} Kc6 {[%emt 0:00:00]} 57. Rc1 {[%emt 0:00:00]} Rh2 {[%emt 0:00:00]} 58. Kg7 {[%emt 0:00:00]} Kb5 {[%emt 0:00:00]} 59. Rxc2 {[%emt 0:00:00]} Rxc2 {[%emt 0:00:00]} 60. Kxh6 {[%emt 0:00:00]} Kxb4 {[%emt 0:02:30]} 61. Kxg5 {[%emt 0:00:00]} Kc5 {[%emt 0:00:00]} 62. Kf6 {[%emt 0:00:00]} Kd6 {[%emt 0:00:00]} 63. g5 {[%emt 0:00:00]} Rf2+ {[%emt 0:00:00]} 64. Kg7 {[%emt 0:00:00]} Ke7 {[%emt 0:00:00]} 65. g6 {[%emt 0:00:00]} Rg2 {[%emt 0:02:30]} 0-1